[Event "Titled Tuesday Blitz August 08 Early 2023"]
[White "Tharushi, T H D Niklesha"]
[Black "Stangl, Anita, Dr."]
[WhiteFideId "9918264"]
[BlackFideId "4608801"]
[WhiteElo "1991"]
[BlackElo "2248"]
[Result "1-0"]
[Round "4"]
[TimeControl "180+1"]
[Date "2023.08.08"]
[WhiteClock "0:01:12"]
[BlackClock "0:00:53"]
[Board "257"]

1. e4 {[%clk 0:02:54]}  e6 {[%clk 0:02:58]} 2. d4 {[%clk 0:02:52]}  d5 {[%clk 0:02:55]} 3. Nc3 {[%clk 0:02:52]}  Nf6 {[%clk 0:02:51]} 4. exd5 {[%clk 0:02:52]}  exd5 {[%clk 0:02:49]} 5. Bd3 {[%clk 0:02:52]}  Nc6 {[%clk 0:02:45]} 6. Nge2 {[%clk 0:02:53]}  Bg4 {[%clk 0:02:40]} 7. f3 {[%clk 0:02:52]}  Bh5 {[%clk 0:02:32]} 8. a3 {[%clk 0:02:50]}  Bd6 {[%clk 0:02:30]} 9. O-O {[%clk 0:02:39]}  O-O {[%clk 0:02:20]} 10. Bf4 {[%clk 0:02:29]}  Bxf4 {[%clk 0:02:11]} 11. Nxf4 {[%clk 0:02:30]}  Nxd4 {[%clk 0:02:05]} 12. Bxh7+ {[%clk 0:02:29]}  Kxh7 {[%clk 0:02:03]} 13. Qxd4 {[%clk 0:02:25]}  c5 {[%clk 0:02:01]} 14. Qd3+ {[%clk 0:02:24]}  Kg8 {[%clk 0:01:47]} 15. Nxh5 {[%clk 0:02:18]}  Nxh5 {[%clk 0:01:41]} 16. Qxd5 {[%clk 0:02:18]}  Qxd5 {[%clk 0:01:30]} 17. Nxd5 {[%clk 0:02:19]}  Rfd8 {[%clk 0:01:29]} 18. c4 {[%clk 0:02:17]}  b5 {[%clk 0:01:23]} 19. b3 {[%clk 0:02:08]}  bxc4 {[%clk 0:01:21]} 20. bxc4 {[%clk 0:02:08]}  Rab8 {[%clk 0:01:20]} 21. Rab1 {[%clk 0:02:08]}  a5 {[%clk 0:01:19]} 22. a4 {[%clk 0:01:34]}  g6 {[%clk 0:01:14]} 23. Rbd1 {[%clk 0:01:19]}  Ng7 {[%clk 0:01:10]} 24. Ne7+ {[%clk 0:01:18]}  Kf8 {[%clk 0:01:07]} 25. Nc6 {[%clk 0:01:15]}  Rxd1 {[%clk 0:01:04]} 26. Rxd1 {[%clk 0:01:16]}  Ra8 {[%clk 0:01:04]} 27. Rd5 {[%clk 0:01:15]}  Ne6 {[%clk 0:01:04]} 28. Kf2 {[%clk 0:01:14]}  Ra6 {[%clk 0:01:04]} 29. Nb8 {[%clk 0:01:13]}  Rb6 {[%clk 0:00:53]} 30. Nd7+ {[%clk 0:01:12]} 1-0


[Site "https://www.chess.com"]

[Event "Titled Tuesday Blitz August 08 Early 2023"]
[White "Schut, Han"]
[Black "Saim, Mohamed Ilias"]
[WhiteFideId "1005561"]
[BlackFideId "7900465"]
[WhiteElo "2246"]
[BlackElo "1977"]
[Result "0-1"]
[Round "4"]
[TimeControl "180+1"]
[Date "2023.08.08"]
[WhiteClock "0:00:00"]
[BlackClock "0:00:09"]
[Board "258"]

1. e4 {[%clk 0:02:54]}  c6 {[%clk 0:02:59]} 2. d4 {[%clk 0:02:54]}  d5 {[%clk 0:03:00]} 3. exd5 {[%clk 0:02:54]}  cxd5 {[%clk 0:03:00]} 4. c4 {[%clk 0:02:55]}  Nf6 {[%clk 0:03:00]} 5. Nc3 {[%clk 0:02:56]}  Nc6 {[%clk 0:02:59]} 6. Nf3 {[%clk 0:02:56]}  g6 {[%clk 0:03:00]} 7. cxd5 {[%clk 0:02:54]}  Nxd5 {[%clk 0:02:59]} 8. Qb3 {[%clk 0:02:55]}  Nxc3 {[%clk 0:02:54]} 9. Bc4 {[%clk 0:02:55]}  e6 {[%clk 0:02:22]} 10. bxc3 {[%clk 0:02:54]}  Bg7 {[%clk 0:02:21]} 11. Ba3 {[%clk 0:02:54]}  Bd7 {[%clk 0:02:12]} 12. Qd1 {[%clk 0:02:11]}  Qa5 {[%clk 0:02:04]} 13. Bb2 {[%clk 0:01:43]}  O-O {[%clk 0:02:04]} 14. O-O {[%clk 0:01:43]}  Rac8 {[%clk 0:02:03]} 15. Bb3 {[%clk 0:01:40]}  Qc7 {[%clk 0:01:57]} 16. c4 {[%clk 0:01:23]}  Na5 {[%clk 0:01:57]} 17. Rc1 {[%clk 0:01:22]}  b6 {[%clk 0:01:45]} 18. Qd2 {[%clk 0:01:12]}  Rfd8 {[%clk 0:01:41]} 19. Rfd1 {[%clk 0:01:02]}  Bc6 {[%clk 0:01:40]} 20. Qe3 {[%clk 0:00:42]}  Ba8 {[%clk 0:01:26]} 21. Ba1 {[%clk 0:00:38]}  h5 {[%clk 0:01:16]} 22. h3 {[%clk 0:00:38]}  Kh7 {[%clk 0:01:16]} 23. Ng5+ {[%clk 0:00:34]}  Kg8 {[%clk 0:01:15]} 24. f4 {[%clk 0:00:31]}  Qc6 {[%clk 0:01:05]} 25. Nf3 {[%clk 0:00:25]}  Bh6 {[%clk 0:01:03]} 26. Rc2 {[%clk 0:00:20]}  Qd6 {[%clk 0:00:54]} 27. Ne5 {[%clk 0:00:19]}  Qxe5 {[%clk 0:00:38]} 28. dxe5 {[%clk 0:00:18]}  Rxd1+ {[%clk 0:00:37]} 29. Kh2 {[%clk 0:00:18]}  Rxa1 {[%clk 0:00:37]} 30. c5 {[%clk 0:00:16]}  Rf1 {[%clk 0:00:34]} 31. Rf2 {[%clk 0:00:13]}  Rxf2 {[%clk 0:00:33]} 32. Qxf2 {[%clk 0:00:14]}  Rxc5 {[%clk 0:00:31]} 33. g4 {[%clk 0:00:12]}  Nxb3 {[%clk 0:00:31]} 34. axb3 {[%clk 0:00:11]}  hxg4 {[%clk 0:00:29]} 35. hxg4 {[%clk 0:00:11]}  Bd5 {[%clk 0:00:29]} 36. Qh4 {[%clk 0:00:11]}  Bg7 {[%clk 0:00:26]} 37. Qd8+ {[%clk 0:00:11]}  Kh7 {[%clk 0:00:25]} 38. Qh4+ {[%clk 0:00:10]}  Kg8 {[%clk 0:00:25]} 39. Qd8+ {[%clk 0:00:11]}  Bf8 {[%clk 0:00:24]} 40. b4 {[%clk 0:00:10]}  Rc2+ {[%clk 0:00:24]} 41. Kg3 {[%clk 0:00:11]}  Rb2 {[%clk 0:00:23]} 42. f5 {[%clk 0:00:08]}  Rb3+ {[%clk 0:00:24]} 43. Kh4 {[%clk 0:00:08]}  gxf5 {[%clk 0:00:23]} 44. gxf5 {[%clk 0:00:09]}  Rxb4+ {[%clk 0:00:20]} 45. Kg5 {[%clk 0:00:10]}  Rb1 {[%clk 0:00:12]} 46. fxe6 {[%clk 0:00:07]}  Bxe6 {[%clk 0:00:11]} 47. Kf4 {[%clk 0:00:07]}  Rf1+ {[%clk 0:00:12]} 48. Ke3 {[%clk 0:00:07]}  Rh1 {[%clk 0:00:09]} 49. Qg5+ {[%clk 0:00:06]}  Bg7 {[%clk 0:00:09]} 50. Qd8+ {[%clk 0:00:06]}  Kh7 {[%clk 0:00:09]} 51. Qe7 {[%clk 0:00:06]}  Rh3+ {[%clk 0:00:09]} 52. Kf2 {[%clk 0:00:06]}  a5 {[%clk 0:00:09]} 53. Qd6 {[%clk 0:00:05]}  Rh5 {[%clk 0:00:08]} 54. Qxb6 {[%clk 0:00:04]}  Rxe5 {[%clk 0:00:08]} 55. Qb1+ {[%clk 0:00:04]}  Rf5+ {[%clk 0:00:09]} 56. Kg3 {[%clk 0:00:04]}  Kg6 {[%clk 0:00:09]} 57. Qb6 {[%clk 0:00:00]}  Bf6 {[%clk 0:00:09]} 0-1


[Site "https://www.chess.com"]

[Event "Titled Tuesday Blitz August 08 Early 2023"]
[White "Joshi, Pankaj"]
[Black "Skiadopoulos, Nikolaos"]
[WhiteFideId "5006210"]
[BlackFideId "4200772"]
[WhiteElo "2228"]
[BlackElo "1878"]
[Result "1/2-1/2"]
[Round "4"]
[TimeControl "180+1"]
[Date "2023.08.08"]
[WhiteClock "0:01:05"]
[BlackClock "0:01:01"]
[Board "262"]

1. e4 {[%clk 0:03:00]}  c5 {[%clk 0:02:56]} 2. c3 {[%clk 0:02:59]}  Nf6 {[%clk 0:02:54]} 3. e5 {[%clk 0:02:58]}  Nd5 {[%clk 0:02:54]} 4. d4 {[%clk 0:02:59]}  cxd4 {[%clk 0:02:53]} 5. cxd4 {[%clk 0:03:00]}  g6 {[%clk 0:02:52]} 6. Nc3 {[%clk 0:03:00]}  Nxc3 {[%clk 0:02:52]} 7. bxc3 {[%clk 0:03:01]}  Bg7 {[%clk 0:02:52]} 8. Nf3 {[%clk 0:03:00]}  O-O {[%clk 0:02:51]} 9. Be3 {[%clk 0:03:00]}  d6 {[%clk 0:02:50]} 10. exd6 {[%clk 0:02:59]}  Qxd6 {[%clk 0:02:50]} 11. Bd3 {[%clk 0:02:59]}  Nc6 {[%clk 0:02:44]} 12. O-O {[%clk 0:02:59]}  Bg4 {[%clk 0:02:37]} 13. h3 {[%clk 0:02:56]}  Bxf3 {[%clk 0:02:34]} 14. Qxf3 {[%clk 0:02:57]}  Rac8 {[%clk 0:02:27]} 15. Bf4 {[%clk 0:02:53]}  Qa3 {[%clk 0:02:20]} 16. Be4 {[%clk 0:02:21]}  Na5 {[%clk 0:02:15]} 17. Bxb7 {[%clk 0:02:10]}  Rxc3 {[%clk 0:02:13]} 18. Qd5 {[%clk 0:02:04]}  Nxb7 {[%clk 0:02:07]} 19. Qxb7 {[%clk 0:02:04]}  Bxd4 {[%clk 0:01:58]} 20. Bh6 {[%clk 0:02:03]}  Bg7 {[%clk 0:01:57]} 21. Bxg7 {[%clk 0:02:01]}  Kxg7 {[%clk 0:01:57]} 22. Qd7 {[%clk 0:01:54]}  Kg8 {[%clk 0:01:35]} 23. Rfe1 {[%clk 0:01:51]}  e6 {[%clk 0:01:32]} 24. Rab1 {[%clk 0:01:44]}  Qxa2 {[%clk 0:01:17]} 25. Rb7 {[%clk 0:01:44]}  Qd5 {[%clk 0:01:16]} 26. Qxd5 {[%clk 0:01:25]}  exd5 {[%clk 0:01:16]} 27. Rxa7 {[%clk 0:01:25]}  d4 {[%clk 0:01:15]} 28. Rd1 {[%clk 0:01:26]}  Rd8 {[%clk 0:01:13]} 29. Ra4 {[%clk 0:01:24]}  d3 {[%clk 0:01:12]} 30. Ra2 {[%clk 0:01:21]}  Kg7 {[%clk 0:01:09]} 31. Rad2 {[%clk 0:01:21]}  f5 {[%clk 0:01:07]} 32. f3 {[%clk 0:01:21]}  Kf6 {[%clk 0:01:07]} 33. f4 {[%clk 0:01:15]}  Rd4 {[%clk 0:01:06]} 34. g3 {[%clk 0:01:13]}  h6 {[%clk 0:01:05]} 35. Kf2 {[%clk 0:01:13]}  g5 {[%clk 0:01:05]} 36. fxg5+ {[%clk 0:01:09]}  hxg5 {[%clk 0:01:05]} 37. Ke3 {[%clk 0:01:10]}  Re4+ {[%clk 0:01:04]} 38. Kf3 {[%clk 0:01:08]}  Rd4 {[%clk 0:01:02]} 39. Ke3 {[%clk 0:01:04]}  Re4+ {[%clk 0:01:01]} 40. Kf3 {[%clk 0:01:05]}  Rd4 {[%clk 0:01:01]} 41. Ke3 {[%clk 0:01:05]} 1/2-1/2


[Site "https://www.chess.com"]

[Event "Titled Tuesday Blitz August 08 Early 2023"]
[White "Caruana, Fabiano"]
[Black "Alekseev, Evgeny"]
[WhiteFideId "2020009"]
[BlackFideId "4138147"]
[WhiteElo "3095"]
[BlackElo "2955"]
[Result "1-0"]
[Round "5"]
[TimeControl "180+1"]
[Date "2023.08.08"]
[WhiteClock "0:00:06"]
[BlackClock "0:00:00"]
[Board "2"]

1. d4 {[%clk 0:03:00]}  Nf6 {[%clk 0:02:59]} 2. c4 {[%clk 0:03:00]}  e6 {[%clk 0:02:59]} 3. Nf3 {[%clk 0:03:01]}  d5 {[%clk 0:02:59]} 4. g3 {[%clk 0:03:01]}  Bb4+ {[%clk 0:02:58]} 5. Bd2 {[%clk 0:03:01]}  Be7 {[%clk 0:02:58]} 6. Bg2 {[%clk 0:03:01]}  O-O {[%clk 0:02:59]} 7. O-O {[%clk 0:03:02]}  c6 {[%clk 0:02:59]} 8. Qc2 {[%clk 0:03:02]}  Nbd7 {[%clk 0:02:59]} 9. Rd1 {[%clk 0:03:02]}  b6 {[%clk 0:02:58]} 10. a4 {[%clk 0:03:00]}  a5 {[%clk 0:02:52]} 11. Bf4 {[%clk 0:02:55]}  Bb7 {[%clk 0:02:47]} 12. Nc3 {[%clk 0:02:51]}  Rc8 {[%clk 0:02:38]} 13. e4 {[%clk 0:02:45]}  dxc4 {[%clk 0:02:37]} 14. Nd2 {[%clk 0:02:20]}  Ba6 {[%clk 0:02:35]} 15. Re1 {[%clk 0:01:43]}  h6 {[%clk 0:02:09]} 16. Rad1 {[%clk 0:01:41]}  Re8 {[%clk 0:01:42]} 17. Nf3 {[%clk 0:01:34]}  Nf8 {[%clk 0:01:28]} 18. Ne5 {[%clk 0:01:32]}  Bb4 {[%clk 0:01:19]} 19. h4 {[%clk 0:01:26]}  b5 {[%clk 0:00:50]} 20. g4 {[%clk 0:01:20]}  N6d7 {[%clk 0:00:47]} 21. Nxd7 {[%clk 0:01:12]}  Qxd7 {[%clk 0:00:46]} 22. e5 {[%clk 0:01:09]}  Ng6 {[%clk 0:00:41]} 23. Bg3 {[%clk 0:01:09]}  Ne7 {[%clk 0:00:38]} 24. Ne4 {[%clk 0:00:51]}  Bxe1 {[%clk 0:00:34]} 25. Rxe1 {[%clk 0:00:51]}  Nd5 {[%clk 0:00:34]} 26. Nd6 {[%clk 0:00:44]}  b4 {[%clk 0:00:34]} 27. g5 {[%clk 0:00:40]}  h5 {[%clk 0:00:33]} 28. g6 {[%clk 0:00:39]}  Rf8 {[%clk 0:00:29]} 29. Bh3 {[%clk 0:00:33]}  c3 {[%clk 0:00:27]} 30. bxc3 {[%clk 0:00:32]}  bxc3 {[%clk 0:00:25]} 31. gxf7+ {[%clk 0:00:32]}  Rxf7 {[%clk 0:00:24]} 32. Qg6 {[%clk 0:00:32]}  Re7 {[%clk 0:00:20]} 33. Qxh5 {[%clk 0:00:29]}  Rf8 {[%clk 0:00:19]} 34. Qg5 {[%clk 0:00:25]}  Bd3 {[%clk 0:00:18]} 35. h5 {[%clk 0:00:24]}  c2 {[%clk 0:00:16]} 36. Rc1 {[%clk 0:00:21]}  Nc3 {[%clk 0:00:16]} 37. Kh2 {[%clk 0:00:12]}  Ne2 {[%clk 0:00:16]} 38. Re1 {[%clk 0:00:11]}  Nxd4 {[%clk 0:00:14]} 39. Bg4 {[%clk 0:00:08]}  Nb3 {[%clk 0:00:13]} 40. Qe3 {[%clk 0:00:07]}  c1=Q {[%clk 0:00:12]} 41. Rxc1 {[%clk 0:00:08]}  Nxc1 {[%clk 0:00:13]} 42. Qxc1 {[%clk 0:00:08]}  Bf5 {[%clk 0:00:13]} 43. Bf3 {[%clk 0:00:08]}  Qa7 {[%clk 0:00:12]} 44. Qg5 {[%clk 0:00:07]}  Rc7 {[%clk 0:00:11]} 45. h6 {[%clk 0:00:07]}  Qd4 {[%clk 0:00:11]} 46. Bh5 {[%clk 0:00:05]}  Qb2 {[%clk 0:00:05]} 47. Ne8 {[%clk 0:00:05]}  Rxe8 {[%clk 0:00:04]} 48. Bxe8 {[%clk 0:00:06]}  Qe2 {[%clk 0:00:00]} 49. Qd8 {[%clk 0:00:06]} 1-0


[Site "https://www.chess.com"]

[Event "Titled Tuesday Blitz August 08 Early 2023"]
[White "Erigaisi Arjun"]
[Black "Jones, Gawain C B"]
[WhiteFideId "35009192"]
[BlackFideId "409561"]
[WhiteElo "3082"]
[BlackElo "2908"]
[Result "1-0"]
[Round "5"]
[TimeControl "180+1"]
[Date "2023.08.08"]
[WhiteClock "0:02:07"]
[BlackClock "0:00:21"]
[Board "4"]

1. b3 {[%clk 0:03:00]}  e5 {[%clk 0:02:59]} 2. e3 {[%clk 0:03:01]}  d5 {[%clk 0:02:59]} 3. g3 {[%clk 0:03:02]}  Nc6 {[%clk 0:02:58]} 4. Bb2 {[%clk 0:03:02]}  Be6 {[%clk 0:02:56]} 5. Bg2 {[%clk 0:03:03]}  Bd6 {[%clk 0:02:52]} 6. d3 {[%clk 0:03:02]}  Qd7 {[%clk 0:02:50]} 7. Nd2 {[%clk 0:02:57]}  Nf6 {[%clk 0:02:47]} 8. a3 {[%clk 0:02:57]}  a5 {[%clk 0:02:39]} 9. h3 {[%clk 0:02:56]}  h5 {[%clk 0:02:39]} 10. Ngf3 {[%clk 0:02:56]}  Bf5 {[%clk 0:02:33]} 11. Ng5 {[%clk 0:02:53]}  Ne7 {[%clk 0:02:23]} 12. Qe2 {[%clk 0:02:47]}  h4 {[%clk 0:02:16]} 13. g4 {[%clk 0:02:46]}  Bg6 {[%clk 0:02:17]} 14. O-O {[%clk 0:02:35]}  O-O-O {[%clk 0:02:13]} 15. c4 {[%clk 0:02:28]}  Kb8 {[%clk 0:01:45]} 16. b4 {[%clk 0:02:18]}  axb4 {[%clk 0:01:40]} 17. axb4 {[%clk 0:02:19]}  Bxb4 {[%clk 0:01:40]} 18. Bxe5 {[%clk 0:02:18]}  Nc6 {[%clk 0:01:23]} 19. Ndf3 {[%clk 0:02:18]}  dxc4 {[%clk 0:01:10]} 20. Qa2 {[%clk 0:02:17]}  Ba5 {[%clk 0:01:10]} 21. Nd4 {[%clk 0:02:15]}  Nxd4 {[%clk 0:00:29]} 22. Qxa5 {[%clk 0:02:07]}  Ne2+ {[%clk 0:00:21]} 23. Kh1 {[%clk 0:02:07]} 1-0


[Site "https://www.chess.com"]

[Event "Titled Tuesday Blitz August 08 Early 2023"]
[White "Pranesh M"]
[Black "Aravindh, Chithambaram VR."]
[WhiteFideId "35028600"]
[BlackFideId "5072786"]
[WhiteElo "3051"]
[BlackElo "2897"]
[Result "1-0"]
[Round "5"]
[TimeControl "180+1"]
[Date "2023.08.08"]
[WhiteClock "0:01:02"]
[BlackClock "0:00:00"]
[Board "5"]

1. e4 {[%clk 0:02:55]}  c6 {[%clk 0:02:59]} 2. d4 {[%clk 0:02:55]}  d5 {[%clk 0:03:00]} 3. e5 {[%clk 0:02:55]}  c5 {[%clk 0:02:59]} 4. dxc5 {[%clk 0:02:55]}  Nc6 {[%clk 0:02:59]} 5. Nf3 {[%clk 0:02:54]}  Bg4 {[%clk 0:02:59]} 6. c3 {[%clk 0:02:55]}  e6 {[%clk 0:02:58]} 7. Be3 {[%clk 0:02:55]}  Nge7 {[%clk 0:02:56]} 8. Bd4 {[%clk 0:02:56]}  Nf5 {[%clk 0:02:53]} 9. Nbd2 {[%clk 0:02:56]}  f6 {[%clk 0:02:38]} 10. h3 {[%clk 0:02:48]}  Bxf3 {[%clk 0:02:29]} 11. Nxf3 {[%clk 0:02:49]}  Nfxd4 {[%clk 0:02:27]} 12. Nxd4 {[%clk 0:02:48]}  Nxd4 {[%clk 0:02:04]} 13. Qxd4 {[%clk 0:02:48]}  Qc7 {[%clk 0:01:54]} 14. exf6 {[%clk 0:02:41]}  Bxc5 {[%clk 0:01:49]} 15. Qa4+ {[%clk 0:02:33]}  Kf7 {[%clk 0:01:40]} 16. fxg7 {[%clk 0:02:33]}  Rhg8 {[%clk 0:01:41]} 17. Be2 {[%clk 0:02:04]}  Rxg7 {[%clk 0:01:40]} 18. g4 {[%clk 0:01:53]}  Kg8 {[%clk 0:01:33]} 19. O-O-O {[%clk 0:01:29]}  Bxf2 {[%clk 0:01:32]} 20. Rhf1 {[%clk 0:01:29]}  Rf8 {[%clk 0:01:28]} 21. Kb1 {[%clk 0:01:29]}  a6 {[%clk 0:00:48]} 22. Qc2 {[%clk 0:01:23]}  Qg3 {[%clk 0:00:40]} 23. c4 {[%clk 0:01:16]}  Qxh3 {[%clk 0:00:20]} 24. cxd5 {[%clk 0:01:14]}  exd5 {[%clk 0:00:21]} 25. Rxd5 {[%clk 0:01:09]}  Qe3 {[%clk 0:00:06]} 26. Bc4 {[%clk 0:01:04]}  Kh8 {[%clk 0:00:00]} 27. Rf5 {[%clk 0:01:02]} 1-0


[Site "https://www.chess.com"]

[Event "Titled Tuesday Blitz August 08 Early 2023"]
[White "Grischuk, Alexander"]
[Black "Bernadskiy, Vitaliy"]
[WhiteFideId "4126025"]
[BlackFideId "14100371"]
[WhiteElo "3035"]
[BlackElo "2879"]
[Result "1-0"]
[Round "5"]
[TimeControl "180+1"]
[Date "2023.08.08"]
[WhiteClock "0:00:03"]
[BlackClock "0:00:00"]
[Board "7"]

1. d4 {[%clk 0:03:00]}  Nf6 {[%clk 0:02:58]} 2. Nf3 {[%clk 0:03:01]}  e6 {[%clk 0:02:58]} 3. c4 {[%clk 0:02:59]}  b6 {[%clk 0:02:58]} 4. g3 {[%clk 0:02:59]}  Ba6 {[%clk 0:02:58]} 5. b3 {[%clk 0:02:57]}  Bb4+ {[%clk 0:02:55]} 6. Bd2 {[%clk 0:02:57]}  Be7 {[%clk 0:02:54]} 7. Bg2 {[%clk 0:02:57]}  d5 {[%clk 0:02:54]} 8. cxd5 {[%clk 0:02:55]}  exd5 {[%clk 0:02:54]} 9. O-O {[%clk 0:02:55]}  O-O {[%clk 0:02:52]} 10. Nc3 {[%clk 0:02:55]}  Re8 {[%clk 0:02:40]} 11. Rc1 {[%clk 0:02:53]}  Bb7 {[%clk 0:02:26]} 12. Bf4 {[%clk 0:02:32]}  c6 {[%clk 0:02:12]} 13. Ne5 {[%clk 0:02:26]}  Nbd7 {[%clk 0:02:11]} 14. Rc2 {[%clk 0:02:19]}  h6 {[%clk 0:02:02]} 15. h4 {[%clk 0:01:55]}  Bb4 {[%clk 0:01:48]} 16. Qd3 {[%clk 0:01:40]}  Nxe5 {[%clk 0:01:10]} 17. Bxe5 {[%clk 0:01:36]}  Nd7 {[%clk 0:00:58]} 18. Bf4 {[%clk 0:01:33]}  Nf6 {[%clk 0:00:52]} 19. Be5 {[%clk 0:01:09]}  Nd7 {[%clk 0:00:51]} 20. Bf4 {[%clk 0:00:54]}  Nf6 {[%clk 0:00:51]} 21. Bf3 {[%clk 0:00:52]}  Qd7 {[%clk 0:00:48]} 22. Kg2 {[%clk 0:00:50]}  Ne4 {[%clk 0:00:40]} 23. Nb1 {[%clk 0:00:37]}  a5 {[%clk 0:00:38]} 24. a3 {[%clk 0:00:37]}  Bd6 {[%clk 0:00:35]} 25. Bxd6 {[%clk 0:00:37]}  Qxd6 {[%clk 0:00:36]} 26. Rfc1 {[%clk 0:00:33]}  Re7 {[%clk 0:00:32]} 27. a4 {[%clk 0:00:13]}  Rae8 {[%clk 0:00:26]} 28. Nc3 {[%clk 0:00:10]}  Qb4 {[%clk 0:00:20]} 29. Na2 {[%clk 0:00:08]}  Qa3 {[%clk 0:00:20]} 30. Rb1 {[%clk 0:00:04]}  Re6 {[%clk 0:00:11]} 31. Nc3 {[%clk 0:00:03]}  Qb4 {[%clk 0:00:10]} 32. Na2 {[%clk 0:00:03]}  Qa3 {[%clk 0:00:11]} 33. Nc3 {[%clk 0:00:04]}  Qe7 {[%clk 0:00:11]} 34. Nd1 {[%clk 0:00:03]}  Qd6 {[%clk 0:00:08]} 35. Rcb2 {[%clk 0:00:03]}  Qb4 {[%clk 0:00:07]} 36. Qc2 {[%clk 0:00:02]}  Bc8 {[%clk 0:00:06]} 37. e3 {[%clk 0:00:02]}  Bd7 {[%clk 0:00:07]} 38. Qe2 {[%clk 0:00:02]}  Qe7 {[%clk 0:00:06]} 39. Rc1 {[%clk 0:00:02]}  Rf6 {[%clk 0:00:06]} 40. b4 {[%clk 0:00:02]}  axb4 {[%clk 0:00:05]} 41. Rcb1 {[%clk 0:00:02]}  c5 {[%clk 0:00:04]} 42. dxc5 {[%clk 0:00:02]}  bxc5 {[%clk 0:00:05]} 43. a5 {[%clk 0:00:03]}  g5 {[%clk 0:00:03]} 44. hxg5 {[%clk 0:00:03]}  hxg5 {[%clk 0:00:04]} 45. a6 {[%clk 0:00:03]}  Qe6 {[%clk 0:00:03]} 46. Kg1 {[%clk 0:00:03]}  Qxa6 {[%clk 0:00:03]} 47. Qxa6 {[%clk 0:00:02]}  Rxa6 {[%clk 0:00:03]} 48. Rc1 {[%clk 0:00:02]}  Ra5 {[%clk 0:00:01]} 49. Rbc2 {[%clk 0:00:02]}  Be6 {[%clk 0:00:01]} 50. Bxe4 {[%clk 0:00:02]}  dxe4 {[%clk 0:00:02]} 51. Rxc5 {[%clk 0:00:03]}  Rxc5 {[%clk 0:00:02]} 52. Rxc5 {[%clk 0:00:03]}  Rd8 {[%clk 0:00:02]} 53. Nb2 {[%clk 0:00:03]}  Rd2 {[%clk 0:00:00]} 54. Na4 {[%clk 0:00:03]} 1-0


[Site "https://www.chess.com"]

[Event "Titled Tuesday Blitz August 08 Early 2023"]
[White "Aronian, Levon"]
[Black "Jaracz, Pawel"]
[WhiteFideId "13300474"]
[BlackFideId "1102222"]
[WhiteElo "3032"]
[BlackElo "2747"]
[Result "1-0"]
[Round "5"]
[TimeControl "180+1"]
[Date "2023.08.08"]
[WhiteClock "0:00:27"]
[BlackClock "0:00:30"]
[Board "9"]

1. e4 {[%clk 0:02:46]}  c5 {[%clk 0:02:55]} 2. Nf3 {[%clk 0:02:45]}  e6 {[%clk 0:02:55]} 3. g3 {[%clk 0:02:44]}  b6 {[%clk 0:02:51]} 4. Bg2 {[%clk 0:02:42]}  Bb7 {[%clk 0:02:51]} 5. Nc3 {[%clk 0:02:42]}  Be7 {[%clk 0:02:46]} 6. d4 {[%clk 0:02:42]}  cxd4 {[%clk 0:02:45]} 7. Nxd4 {[%clk 0:02:42]}  a6 {[%clk 0:02:45]} 8. O-O {[%clk 0:02:42]}  Nc6 {[%clk 0:02:43]} 9. Nxc6 {[%clk 0:02:26]}  Bxc6 {[%clk 0:02:37]} 10. Nd5 {[%clk 0:02:26]}  Nf6 {[%clk 0:02:28]} 11. Nxe7 {[%clk 0:02:23]}  Qxe7 {[%clk 0:02:28]} 12. Re1 {[%clk 0:02:23]}  O-O {[%clk 0:02:24]} 13. a4 {[%clk 0:02:19]}  e5 {[%clk 0:02:22]} 14. b3 {[%clk 0:02:11]}  b5 {[%clk 0:02:20]} 15. Qd2 {[%clk 0:02:07]}  Rfb8 {[%clk 0:02:01]} 16. Bb2 {[%clk 0:01:48]}  Qe6 {[%clk 0:01:57]} 17. axb5 {[%clk 0:01:34]}  axb5 {[%clk 0:01:57]} 18. Qc3 {[%clk 0:01:29]}  Rxa1 {[%clk 0:01:48]} 19. Bxa1 {[%clk 0:01:30]}  Re8 {[%clk 0:01:40]} 20. Qc5 {[%clk 0:01:30]}  h5 {[%clk 0:01:38]} 21. f3 {[%clk 0:01:07]}  h4 {[%clk 0:01:17]} 22. g4 {[%clk 0:01:05]}  Nh7 {[%clk 0:01:17]} 23. Rd1 {[%clk 0:00:58]}  f6 {[%clk 0:01:17]} 24. Bc3 {[%clk 0:00:43]}  Qf7 {[%clk 0:01:11]} 25. Be1 {[%clk 0:00:41]}  g5 {[%clk 0:00:56]} 26. Bf1 {[%clk 0:00:40]}  Rb8 {[%clk 0:00:41]} 27. c4 {[%clk 0:00:36]}  Nf8 {[%clk 0:00:35]} 28. cxb5 {[%clk 0:00:32]}  Ne6 {[%clk 0:00:35]} 29. Qd6 {[%clk 0:00:27]}  Rxb5 {[%clk 0:00:35]} 30. Bxb5 {[%clk 0:00:26]}  Bxb5 {[%clk 0:00:30]} 31. Qb8+ {[%clk 0:00:27]} 1-0


[Site "https://www.chess.com"]

[Event "Titled Tuesday Blitz August 08 Early 2023"]
[White "Alex_Sahakyan2006"]
[Black "Martinez Alcantara, Jose Eduardo"]
[BlackFideId "3805662"]
[WhiteElo "2721"]
[BlackElo "3024"]
[Result "0-1"]
[Round "5"]
[TimeControl "180+1"]
[Date "2023.08.08"]
[WhiteClock "0:00:06"]
[BlackClock "0:01:04"]
[Board "10"]

1. d4 {[%clk 0:03:00]}  Nf6 {[%clk 0:03:00]} 2. c4 {[%clk 0:02:56]}  e6 {[%clk 0:03:00]} 3. Nf3 {[%clk 0:02:56]}  Bb4+ {[%clk 0:03:00]} 4. Bd2 {[%clk 0:02:54]}  c5 {[%clk 0:03:00]} 5. Bxb4 {[%clk 0:02:46]}  cxb4 {[%clk 0:03:01]} 6. g3 {[%clk 0:02:42]}  a5 {[%clk 0:03:00]} 7. Bg2 {[%clk 0:02:41]}  O-O {[%clk 0:03:01]} 8. O-O {[%clk 0:02:39]}  d6 {[%clk 0:03:01]} 9. a3 {[%clk 0:02:39]}  Na6 {[%clk 0:03:01]} 10. Qd3 {[%clk 0:02:36]}  b6 {[%clk 0:02:49]} 11. Ne1 {[%clk 0:02:19]}  Rb8 {[%clk 0:02:40]} 12. Nc2 {[%clk 0:02:20]}  bxa3 {[%clk 0:02:23]} 13. Rxa3 {[%clk 0:02:21]}  d5 {[%clk 0:02:19]} 14. Nc3 {[%clk 0:02:14]}  Nb4 {[%clk 0:02:18]} 15. Qd2 {[%clk 0:02:08]}  dxc4 {[%clk 0:02:17]} 16. Nb5 {[%clk 0:01:59]}  Bd7 {[%clk 0:01:49]} 17. Nxb4 {[%clk 0:01:44]}  Bxb5 {[%clk 0:01:43]} 18. Nc6 {[%clk 0:01:43]}  Bxc6 {[%clk 0:01:43]} 19. Bxc6 {[%clk 0:01:44]}  Qd6 {[%clk 0:01:44]} 20. Bf3 {[%clk 0:01:36]}  Rfd8 {[%clk 0:01:43]} 21. Rd1 {[%clk 0:01:20]}  Nd5 {[%clk 0:01:42]} 22. Raa1 {[%clk 0:01:10]}  Rbc8 {[%clk 0:01:41]} 23. e3 {[%clk 0:00:53]}  h6 {[%clk 0:01:41]} 24. Rac1 {[%clk 0:00:50]}  Nb4 {[%clk 0:01:38]} 25. Be4 {[%clk 0:00:40]}  b5 {[%clk 0:01:36]} 26. Qe2 {[%clk 0:00:40]}  a4 {[%clk 0:01:28]} 27. Qh5 {[%clk 0:00:38]}  Nd5 {[%clk 0:01:26]} 28. Bb1 {[%clk 0:00:38]}  a3 {[%clk 0:01:23]} 29. bxa3 {[%clk 0:00:35]}  Qxa3 {[%clk 0:01:24]} 30. Re1 {[%clk 0:00:22]}  b4 {[%clk 0:01:21]} 31. g4 {[%clk 0:00:22]}  Nf6 {[%clk 0:01:14]} 32. Qb5 {[%clk 0:00:18]}  c3 {[%clk 0:01:06]} 33. g5 {[%clk 0:00:07]}  hxg5 {[%clk 0:01:07]} 34. Qxg5 {[%clk 0:00:07]}  b3 {[%clk 0:01:06]} 35. Bd3 {[%clk 0:00:07]}  c2 {[%clk 0:01:05]} 36. e4 {[%clk 0:00:07]}  b2 {[%clk 0:01:04]} 37. Rxc2 {[%clk 0:00:07]}  Qxd3 {[%clk 0:01:04]} 38. Rxc8 {[%clk 0:00:07]}  Rxc8 {[%clk 0:01:05]} 39. e5 {[%clk 0:00:08]}  b1=Q {[%clk 0:01:04]} 40. exf6 {[%clk 0:00:06]}  Qxe1+ {[%clk 0:01:04]} 0-1


[Site "https://www.chess.com"]